bitfinex-derivatives/quotes_SOLF0:USTF0_20250829
["timestamp","ask_amount","ask_price","bid_price","bid_amount"]
[1756425601487,7.56,214.45,214.33,7.33]
[1756425601687,7.56,214.43,214.33,7.33]
[1756425601888,2.54991748,214.42,214.33,7.33]
[1756425602084,7.56,214.43,214.33,7.33]
[1756425602895,7.56,214.43,214.29,7.83784024]
[1756425603185,7.56,214.41,214.3,7.83784024]
[1756425603392,7.56,214.39,214.31,7.33]
[1756425603781,7.56,214.39,214.29,7.83784024]
[1756425603991,7.56,214.37,214.27,7.33]
[1756425604186,14.01,214.42,214.27,7.33]
[1756425604386,21.57,214.39,214.27,7.33]
[1756425604690,7.56,214.37,214.27,7.33]
[1756425604890,7.56,214.37,214.28,7.33]
[1756425605090,7.56,214.41,214.29,7.33]
[1756425605395,2.54983464,214.4,214.29,7.33]
[1756425605589,2.54983464,214.39,214.33,0.0320639]
[1756425605887,7.56,214.37,214.33,0.0320639]
[1756425606092,7.56,214.46,214.33,0.0320639]
[1756425606294,7.87,214.44,214.32,7.33]
[1756425606485,5.23258271,214.48,214.32,7.33]
[1756425606486,7.87,214.42,214.32,7.33]
[1756425606687,7.87,214.4,214.32,7.33]
[1756425606986,2.54966254,214.39,214.32,7.33]
[1756425607181,7.87,214.42,214.32,7.33]
[1756425607381,2.54955961,214.41,214.32,7.33]
[1756425607584,7.87,214.39,214.32,7.33]
[1756425607891,2.54955609,214.38,214.35,0.0344889]
[1756425608189,7.87,214.36,214.35,0.0344889]
[1756425608392,7.87,214.36,214.27,7.85]
[1756425608793,7.87,214.36,214.23,15.68784024]
[1756425608993,2.55890161,214.35,214.23,15.68784024]
[1756425609188,7.87,214.33,214.23,7.85]
[1756425609392,7.87,214.33,214.27,0.03421118]
[1756425609591,2.5580149,214.32,214.27,0.03421118]
[1756425609793,14.08,214.38,214.27,0.03421118]
[1756425609991,13.71746269,214.37,214.27,0.03421118]
[1756425610190,7.87,214.35,214.23,7.85]
[1756425610397,14.08,214.38,214.23,7.85]
[1756425610398,7.87,214.33,214.23,7.85]
[1756425610694,7.87,214.31,214.2,321.25]
[1756425610888,7.87,214.37,214.27,0.03064673]
[1756425611089,7.87,214.35,214.27,0.03064673]
[1756425611286,7.87,214.33,214.27,0.03064673]
[1756425611490,14.08,214.38,214.27,0.03064673]
[1756425611491,7.87,214.31,214.27,0.03064673]
[1756425611691,7.87,214.37,214.27,0.03064673]
[1756425611893,7.87,214.35,214.16,7.85]
[1756425612098,7.87,214.33,214.16,7.85]
[1756425612288,7.87,214.31,214.12,7.85]
[1756425612492,7.87,214.29,214.12,7.85]
[1756425612693,7.87,214.27,214.12,7.85]
[1756425612896,7.87,214.25,214.12,7.85]
[1756425613193,0.03586107,214.22,214.12,7.85]
[1756425613391,7.87,214.21,214.06,7.85]
[1756425614194,0.03041429,214.16,214.06,7.85]
[1756425614993,0.03041429,214.16,214.06,15.68784024]
[1756425615187,0.03041429,214.16,214.07,7.85]
[1756425615589,0.7,214.3,214.07,7.83784024]
[1756425615790,7.87,214.28,214.08,7.85]
[1756425616591,7.87,214.28,214.08,7.83784024]
[1756425616793,7.87,214.28,214.09,7.85]
[1756425616995,7.87,214.28,214.11,7.85]
[1756425617195,7.87,214.28,214.12,5.38]
[1756425617392,7.87,214.28,214.13,7.85]
[1756425617590,313.44,214.39,214.13,7.85]
[1756425617591,7.82,214.35,214.13,7.85]
[1756425617795,7.87,214.34,214.13,7.85]
[1756425617999,7.87,214.34,214.12,5.38]
[1756425618000,7.87,214.34,214.18,0.0310597]
[1756425618301,7.87,214.34,214.19,7.85]
[1756425619399,14.01,214.32,214.1,7.85]
[1756425619596,10.40944236,214.31,214.1,7.85]
[1756425619799,7.87,214.29,214.19,0.03094728]
[1756425620196,7.87,214.27,214.19,0.03094728]
[1756425620494,7.87,214.27,214.14,7.85]
[1756425620900,7.87,214.27,214.21,0.03102156]
[1756425621799,7.87,214.25,214.1,7.85]
[1756425622800,7.87,214.24,214.04,7.85]
[1756425623104,7.87,214.19,214.15,0.03560548]
[1756425623602,7.87,214.24,214.16,7.85]
[1756425623798,0.03502385,214.19,214.16,7.85]
[1756425624305,0.03502385,214.19,214.04,7.85]
[1756425624800,14.01,214.33,214.04,7.85]
[1756425625006,7.87,214.31,214.04,7.85]
[1756425625209,7.87,214.31,214.05,7.83784024]
[1756425625506,7.87,214.31,214.08,7.85]
[1756425625709,7.87,214.31,214.09,7.85]
[1756425626100,7.87,214.31,214.1,7.85]
[1756425626504,7.87,214.31,214.12,7.85]
[1756425627912,0.0323209,214.24,214.2,7.85]
[1756425628302,0.0323209,214.24,214.12,7.85]
[1756425628497,0.0323209,214.24,214.2,0.03365147]
[1756425628698,7.87,214.31,214.21,7.85]
[1756425628904,0.03463803,214.24,214.12,7.85]
[1756425629300,0.03463803,214.24,214.16,0.03092899]
[1756425629499,0.03463803,214.24,214.17,7.85]
[1756425632103,0.03463803,214.24,214.16,0.03092899]
[1756425632304,7.87,214.23,214.16,0.03092899]
[1756425639221,7.4,214.21,214.16,0.03092899]
[1756425639415,7.86,214.21,214.16,0.03092899]
[1756425639616,7.4,214.19,214.16,0.03092899]
[1756425639816,7.4,214.17,213.98,7.83]
[1756425640819,7.4,214.15,213.98,7.83]
[1756425641116,0.03049987,214.1,213.98,7.83]
[1756425647329,0.03049987,214.1,213.98,15.66784024]
[1756425647628,0.03049987,214.1,213.99,7.83]
[1756425648527,0.03049987,214.1,214.0,116.94]
[1756425648731,0.03049987,214.1,214.01,7.83]
[1756425649225,0.03049987,214.1,214.03,7.83]
[1756425649626,7.4,214.18,214.03,7.83]
[1756425649929,0.03062002,214.09,214.03,7.83]
[1756425650528,0.03062002,214.09,214.05,7.83]
[1756425650727,0.03062002,214.09,214.07,7.83]
[1756425650923,7.4,214.18,214.07,7.83]
[1756425651227,0.03122327,214.1,214.08,7.83]
[1756425651529,7.4,214.18,214.08,7.83]
[1756425651730,0.03034937,214.11,214.08,7.83]
[1756425652528,0.03034937,214.11,214.07,116.94]
[1756425653027,0.03034937,214.11,214.08,7.83]
[1756425653227,4.937e-05,214.11,214.08,7.83]
[1756425654523,4.937e-05,214.11,214.07,116.94]
[1756425654729,4.937e-05,214.11,214.08,7.83]
[1756425655231,4.937e-05,214.11,214.07,116.94]
[1756425655633,4.937e-05,214.11,214.08,7.83]
[1756425655833,4.937e-05,214.11,214.07,116.94]
[1756425656034,4.937e-05,214.11,214.08,7.83]
[1756425656528,4.937e-05,214.11,214.07,116.94]
[1756425657129,4.937e-05,214.11,214.08,7.83]
[1756425657330,4.937e-05,214.11,214.07,116.94]
[1756425657635,4.937e-05,214.11,214.08,7.83]
[1756425659032,4.937e-05,214.11,214.09,7.83]
[1756425659434,4.937e-05,214.11,214.07,116.94]
[1756425659937,4.937e-05,214.11,214.08,7.83]
[1756425660236,4.937e-05,214.11,214.07,116.94]
[1756425660632,4.937e-05,214.11,214.08,7.83]
[1756425661134,4.937e-05,214.11,214.08,15.66784024]
[1756425661331,385.91644235,214.34,214.09,7.83]
[1756425661528,122.70649271,214.33,214.09,7.83784024]
[1756425661735,7.4,214.31,214.11,7.83]
[1756425661939,5.80649271,214.3,214.11,7.83]
[1756425662238,7.4,214.28,214.11,81.67]
[1756425662432,7.4,214.26,214.07,7.83]
[1756425662740,7.4,214.24,214.08,78.24]
[1756425662938,2.54171277,214.23,214.08,78.24]
[1756425663234,136.14258271,214.33,214.09,83.28]
[1756425663432,7.4,214.31,214.1,7.83]
[1756425663634,7.4,214.29,214.1,7.83]
[1756425663833,7.4,214.27,214.11,7.83]
[1756425665439,7.4,214.25,214.12,7.83]
[1756425666534,7.67,214.33,214.15,15.08784024]
[1756425666739,7.67,214.33,214.19,7.25]
[1756425666940,7.67,214.33,214.21,7.25]
[1756425669234,7.67,214.41,214.21,7.25]
[1756425669440,7.67,214.39,214.21,7.25]
[1756425670739,7.67,214.39,214.23,7.25]
[1756425672245,7.67,214.39,214.25,7.25]
[1756425675240,7.67,214.39,214.3,0.03410889]
[1756425675447,7.67,214.39,214.3,7.28410889]
[1756425676245,7.67,214.45,214.3,7.28410889]
[1756425676646,7.67,214.45,214.3,7.25]
[1756425677647,7.67,214.45,214.35,0.03139063]
[1756425678245,7.67,214.51,214.36,7.25]
[1756425678444,7.72,214.63,214.36,7.25]
[1756425678643,0.02991734,214.42,214.36,7.25]
[1756425678840,7.67,214.53,214.47,0.03498159]
[1756425679140,8.48147254,214.58,214.47,7.25]
[1756425680546,7.67,214.58,214.47,7.25]
[1756425681144,0.81122663,214.62,214.47,7.25]
[1756425681348,7.67,214.62,214.47,7.25]
[1756425681549,0.81120772,214.63,214.47,14.13]
[1756425682041,7.67,214.62,214.47,14.13]
[1756425682248,7.67,214.62,214.47,7.25]
[1756425684147,7.67,214.62,214.44,6.88]
[1756425684348,7.67,214.62,214.45,7.25]
[1756425685853,7.67,214.66,214.45,7.25]
[1756425686851,7.67,214.66,214.54,7.25]
[1756425687052,7.67,214.66,214.54,124.91]
[1756425687252,7.67,214.66,214.54,124.89]
[1756425687451,7.67,214.66,214.58,0.03343117]
[1756425689252,7.67,214.66,214.58,7.28343117]
[1756425690263,7.67,214.7,214.58,7.28343117]
[1756425690658,7.67,214.7,214.58,7.25]
[1756425692058,8.48070692,214.78,214.58,7.25]
[1756425693054,7.67,214.78,214.59,7.25]
[1756425693259,7.67,214.74,214.45,7.25]
[1756425693452,7.67,214.72,214.47,7.25]
[1756425693648,7.67,214.72,214.49,7.25]
[1756425693847,21.68,214.71,214.42,7.25]
[1756425694049,7.67,214.68,214.42,7.25]
[1756425694247,7.54,214.67,214.42,7.25]
[1756425694454,7.67,214.66,214.42,7.25]
[1756425696055,7.67,214.66,214.41,313.16]
[1756425696056,7.67,214.66,214.44,7.25]
[1756425696561,7.57,214.66,214.46,7.82]
[1756425701565,313.16,214.74,214.46,7.82]
[1756425701566,7.57,214.73,214.46,7.82]
[1756425701968,7.57,214.73,214.48,7.82]
[1756425702358,53.25,214.87,214.48,7.82]
[1756425702662,7.57,214.82,214.48,7.82]
[1756425703562,7.57,214.82,214.49,14.01]
[1756425703763,7.57,214.82,214.5,7.82]
[1756425704366,0.81053698,214.86,214.52,7.82]
[1756425704568,7.57,214.85,214.52,7.82]
[1756425705271,7.57,214.85,214.53,4.14]
[1756425705570,7.57,214.85,214.66,0.03020309]
[1756425705767,7.57,214.85,214.67,3.68]
[1756425705961,7.57,214.85,214.67,37.34]
[1756425706468,0.81053698,214.86,214.67,37.34]
[1756425706763,2.50086605,214.85,214.65,48.54]
[1756425706968,0.81053698,214.86,214.65,48.54]
[1756425707166,7.57,214.84,214.65,48.54]
[1756425707470,0.81053698,214.86,214.65,48.54]
[1756425707670,7.57,214.85,214.66,7.82]
[1756425707860,0.0297548,214.77,214.72,0.03328955]
[1756425708062,7.57,214.76,214.72,0.03328955]
[1756425708258,7.57,214.76,214.66,7.82]
[1756425708458,0.0297548,214.77,214.72,0.03355658]
[1756425709368,7.57,214.76,214.72,0.03355658]
[1756425709960,0.0297548,214.77,214.72,0.03355658]
[1756425710667,7.57,214.76,214.72,0.03355658]
[1756425711870,0.0297548,214.77,214.72,0.03355658]
[1756425712072,0.0297548,214.77,214.73,7.82]
[1756425712272,0.0297548,214.77,214.72,0.03355658]
[1756425712773,5.48e-05,214.77,214.73,7.82]
[1756425714071,5.48e-05,214.77,214.74,118.16]
[1756425714672,5.48e-05,214.77,214.75,7.82]
[1756425714872,5.48e-05,214.77,214.74,118.16]
[1756425715273,7.57,214.91,214.75,7.82]
[1756425715668,7.57,214.91,214.76,90.24]
[1756425715868,7.57,214.91,214.77,7.82]
[1756425716465,0.81006529,214.96,214.82,0.03077015]
[1756425716466,2.51143999,214.9,214.82,0.03077015]
[1756425716670,7.57,214.89,214.82,0.03077015]
[1756425716866,7.57,214.89,214.74,0.2]
[1756425717070,7.57,214.89,214.83,0.03144468]
[1756425717969,8.03,214.89,214.72,0.9]
[1756425718174,7.57,214.89,214.72,0.9]
[1756425718474,7.57,214.87,214.71,7.82]
[1756425718668,7.57,214.85,214.67,102.10681021]
[1756425718865,14.01,214.89,214.67,102.10681021]
[1756425718866,2.51427916,214.84,214.67,102.10681021]
[1756425719066,0.03371873,214.78,214.74,0.03550795]
[1756425719465,7.57,214.77,214.66,7.82]
[1756425720062,9.12,214.82,214.64,431.08]
[1756425720266,9.12,214.82,214.61,126.06]
[1756425720267,7.57,214.8,214.61,126.06]
[1756425720468,7.57,214.78,214.61,126.06]
[1756425720670,2.51982719,214.77,214.61,126.06]
[1756425720871,7.57,214.76,214.61,126.06]
[1756425721066,23.13,214.82,214.61,126.06]
[1756425721272,7.57,214.8,214.61,7.82]
[1756425721473,14.01,214.78,214.59,24.8]
[1756425721674,7.57,214.76,214.59,24.8]
[1756425721867,7.57,214.74,214.55,59.12]
[1756425722068,14.01,214.76,214.55,59.12]
[1756425722069,7.57,214.72,214.55,59.12]
[1756425722267,5.74468955,214.71,214.55,59.12]
[1756425722571,7.57,214.74,214.55,59.12]
[1756425722770,7.57,214.72,214.56,7.82]
[1756425723471,7.57,214.7,214.56,7.82]
[1756425723666,4.78,214.79,214.56,7.82]
[1756425723667,7.57,214.68,214.56,7.82]
[1756425726075,7.75,214.66,214.53,312.84]
[1756425728179,7.75,214.66,214.54,7.24]
[1756425728977,7.75,214.66,214.54,125.62]
[1756425729377,8.94,214.74,214.54,125.62]
[1756425729378,7.75,214.73,214.54,7.24]
[1756425729676,7.75,214.71,214.54,7.24]
[1756425729878,7.75,214.69,214.54,7.24]
[1756425730080,7.75,214.67,214.54,7.24]
[1756425730281,2.53470867,214.66,214.54,7.24]
[1756425730480,7.75,214.65,214.54,7.24]
[1756425731874,7.94,214.72,214.54,7.24]
[1756425732083,13.52567555,214.71,214.54,7.24]
[1756425732279,2.53400997,214.7,214.54,7.24]
[1756425732482,7.75,214.69,214.54,7.24]
[1756425733575,7.75,214.69,214.55,118.44]
[1756425734681,7.75,214.69,214.56,118.36]
[1756425735177,7.75,214.69,214.57,118.34]
[1756425735879,7.75,214.69,214.58,7.24]
[1756425737678,7.75,214.69,214.53,320.08]
[1756425737882,2.53334066,214.68,214.53,320.08]
[1756425738079,14.01,214.72,214.53,320.08]
[1756425738276,7.75,214.76,214.54,7.24]
[1756425741385,20.59,214.82,214.55,118.5]
[1756425741581,13.5318754,214.81,214.56,7.24]
[1756425741783,7.75,214.79,214.56,7.24]
[1756425741983,7.75,214.77,214.56,7.24]
[1756425742181,7.75,214.77,214.53,312.84]
[1756425742182,20.59,214.82,214.57,118.48]
[1756425742384,7.75,214.8,214.58,7.24]
[1756425742691,7.75,214.77,214.59,118.48]
[1756425742896,7.75,214.75,214.59,118.48]
[1756425743089,7.75,214.77,214.59,118.48]
[1756425743290,7.75,214.75,214.58,7.24]
[1756425743495,7.75,214.73,214.56,43.18]
[1756425743692,17.98566658,214.72,214.56,43.18]
[1756425743892,2.53706492,214.71,214.56,43.18]
[1756425744093,7.75,214.7,214.56,43.18]
[1756425744496,7.75,214.7,214.56,50.42]
[1756425744695,7.75,214.7,214.57,7.24]
[1756425747301,5.78446022,214.69,214.54,42.6]
[1756425747598,7.75,214.71,214.54,42.6]
[1756425747795,7.75,214.69,214.54,42.6]
[1756425747996,26.21,214.72,214.54,42.6]
[1756425748200,5.78563982,214.71,214.54,42.6]
[1756425748496,7.75,214.69,214.54,42.6]
[1756425748697,2.53727137,214.68,214.54,42.6]
[1756425749002,7.75,214.66,214.54,42.6]
[1756425749200,7.75,214.66,214.52,7.24]
[1756425750299,7.75,214.66,214.41,7.24]
[1756425750300,14.01,214.66,214.41,7.24]
[1756425750498,7.75,214.63,214.41,7.24]
[1756425750694,313.02,214.68,214.41,7.24]
[1756425750695,7.75,214.61,214.41,7.24]
[1756425750894,7.75,214.59,214.41,7.24]
[1756425753706,19.79,214.59,214.41,7.24]
[1756425754109,26.97,214.59,214.41,7.24]
[1756425755802,7.75,214.67,214.41,7.24]
[1756425758200,126.47,214.67,214.41,7.24]
[1756425759008,126.43,214.67,214.42,7.48]
[1756425760508,2.53571707,214.66,214.42,7.48]
[1756425760805,2.53571707,214.66,214.3,7.83784024]
[1756425760806,7.39,214.59,214.3,7.83784024]
[1756425761006,14.01,214.6,214.26,7.48]
[1756425761007,14.01,214.54,214.26,7.48]
[1756425761302,7.39,214.47,214.26,7.48]
[1756425761504,7.39,214.47,214.0,13.06306707]
[1756425761505,14.01,214.4,214.14,7.48]
[1756425761707,14.01,214.34,214.14,7.48]
[1756425761902,14.01,214.28,214.08,7.48]
[1756425762201,7.39,214.25,214.08,7.48]
[1756425762396,7.39,214.23,214.08,7.48]
[1756425763103,7.39,214.33,214.09,35.36]
[1756425763305,7.39,214.33,214.1,7.48]
[1756425766909,7.39,214.33,214.12,7.48]
[1756425769713,313.16,214.42,214.13,313.38]
[1756425769714,11.14,214.39,214.13,313.38]
[1756425769913,11.14,214.39,214.14,7.48]
[1756425770402,7.39,214.38,214.14,7.48]
[1756425772206,7.39,214.41,214.16,7.48]
[1756425774914,7.39,214.39,214.16,7.48]
[1756425777704,7.39,214.51,214.18,7.48]
[1756425777909,7.39,214.49,214.18,7.48]
[1756425779104,7.39,214.49,214.2,7.48]
[1756425779414,7.39,214.49,214.22,7.48]
[1756425780608,7.39,214.49,214.22,4.669]
[1756425780909,7.39,214.49,214.23,7.48]
[1756425781508,7.39,214.49,214.25,7.48]
[1756425782110,7.39,214.54,214.27,7.48]
[1756425782311,7.39,214.54,214.29,7.48]
[1756425782614,7.39,214.54,214.3,4.669]
[1756425782817,7.39,214.54,214.28,313.42]
[1756425782818,320.85,214.59,214.33,7.48]
[1756425783220,320.85,214.59,214.35,7.48]
[1756425783420,320.85,214.59,214.37,7.48]
[1756425783812,7.39,214.59,214.37,7.48]
[1756425784214,7.39,214.71,214.38,12.149]
[1756425784418,125.23,214.71,214.39,7.48]
[1756425784619,7.39,214.71,214.42,4.669]
[1756425784817,7.39,214.71,214.46,7.48]
[1756425785018,7.39,214.71,214.48,7.48]
[1756425785917,7.39,214.71,214.49,120.52]
[1756425786124,7.39,214.71,214.5,7.48]
[1756425786417,7.39,214.71,214.52,7.1]
[1756425787719,7.39,214.71,214.54,7.1]
[1756425788020,7.39,214.71,214.56,7.1]
[1756425789323,7.39,214.71,214.57,6.74]
[1756425789523,7.39,214.71,214.56,7.1]
[1756425789724,7.39,214.71,214.57,6.74]
[1756425791421,4.06,214.76,214.58,13.14]
[1756425791628,7.4,214.75,214.58,13.14]
[1756425791827,4.06,214.76,214.58,13.14]
[1756425792025,7.4,214.75,214.56,7.1]
[1756425792227,7.4,214.75,214.57,9.1]
[1756425792928,7.4,214.75,214.58,6.6]
[1756425793127,7.4,214.75,214.59,7.1]
[1756425794526,7.4,214.75,214.6,10.82]
[1756425795625,7.4,214.75,214.61,7.1]
[1756425796027,7.4,214.79,214.46,7.1]
[1756425796232,7.4,214.79,214.47,8.06]
[1756425796425,7.4,214.79,214.48,7.1]
[1756425796827,7.4,214.77,214.5,7.1]
[1756425798434,3.3856798,214.76,214.51,6.0]
[1756425798629,7.4,214.76,214.51,6.0]
[1756425799431,21.41,214.76,214.51,6.0]
[1756425799837,21.41,214.76,214.52,7.14]
[1756425800531,21.41,214.76,214.62,0.03213021]
[1756425800733,14.01,214.74,214.5,7.1]
[1756425800935,7.4,214.65,214.5,8.14]
[1756425801436,7.4,214.74,214.5,8.14]
[1756425802030,0.03088,214.64,214.5,8.14]
[1756425802430,7.4,214.7,214.5,8.14]
[1756425802639,0.02968521,214.59,214.5,8.14]
[1756425803341,8.521e-05,214.59,214.5,8.14]
[1756425807945,8.521e-05,214.59,214.5,7.1]
[1756425808146,8.521e-05,214.59,214.51,76.94]
[1756425808744,8.521e-05,214.59,214.5,7.1]
[1756425808946,8.521e-05,214.59,214.51,119.78]
[1756425809150,8.521e-05,214.59,214.5,7.1]
[1756425811844,7.4,214.7,214.5,7.1]
[1756425812548,7.4,214.7,214.46,4.669]
[1756425812549,7.4,214.7,214.52,7.1]
[1756425813241,7.4,214.82,214.52,7.1]
[1756425813446,7.4,214.8,214.56,4.669]
[1756425813648,7.4,214.8,214.58,7.1]
[1756425813842,7.4,214.8,214.62,7.1]
[1756425814050,7.4,214.8,214.64,7.1]
[1756425814249,7.4,214.8,214.59,320.12]
[1756425814455,13.98,214.81,214.6,120.16]
[1756425814749,7.4,214.79,214.6,120.16]
[1756425814943,3.41074638,214.78,214.59,313.02]
[1756425815146,5.92800424,214.77,214.55,72.36]
[1756425815350,16.54226549,214.76,214.54,7.1]
[1756425815546,7.4,214.74,214.54,7.1]
[1756425815751,7.4,214.72,214.54,7.1]
[1756425815955,7.4,214.7,214.54,7.1]
[1756425816155,7.14,214.68,214.54,7.1]
[1756425816352,7.14,214.66,214.54,7.1]
[1756425817356,7.14,214.76,214.54,7.1]
[1756425817556,7.14,214.74,214.54,7.1]
[1756425817750,7.14,214.72,214.54,7.1]
[1756425817957,7.14,214.7,214.54,7.1]
[1756425818156,3.42985424,214.69,214.54,7.1]
[1756425818357,3.43900266,214.68,214.54,7.1]
[1756425818657,7.14,214.7,214.54,7.1]
[1756425818859,3.43857264,214.69,214.54,7.1]
[1756425819055,7.14,214.7,214.54,7.1]
[1756425819250,3.43883321,214.69,214.54,7.1]
[1756425819558,3.43883321,214.68,214.54,7.1]
[1756425819758,3.43883321,214.67,214.54,7.1]
[1756425819960,3.43883321,214.66,214.54,7.1]
[1756425820255,3.43883321,214.65,214.54,7.1]
[1756425820459,3.43883321,214.64,214.55,109.94]
[1756425820655,3.43883321,214.63,214.56,120.42]
[1756425820853,3.43883321,214.62,214.56,120.42]
[1756425821055,3.43883321,214.61,214.56,128.2]
[1756425821362,7.14,214.66,214.56,128.2]
[1756425821548,3.36330215,214.65,214.57,7.78]
[1756425821755,7.14,214.73,214.57,7.78]
[1756425821950,7.14,214.81,214.57,7.78]
[1756425822251,2.54670668,214.8,214.57,7.78]
[1756425822455,7.14,214.81,214.57,7.78]
[1756425822751,2.54528554,214.8,214.57,7.78]
[1756425822955,7.14,214.81,214.57,7.78]
[1756425823156,2.54420289,214.8,214.57,7.78]
[1756425823355,7.14,214.81,214.57,7.78]
[1756425823555,2.54420306,214.8,214.57,7.78]
[1756425823759,7.14,214.81,214.57,7.78]
[1756425823957,7.14,214.79,214.59,7.78]
[1756425824156,2.54424048,214.78,214.59,7.78]
[1756425824456,7.14,214.79,214.59,7.78]
[1756425824755,7.14,214.77,214.59,7.78]
[1756425824955,7.14,214.75,214.59,7.78]
[1756425825154,7.14,214.73,214.59,7.78]
[1756425825455,7.14,214.71,214.59,7.78]
[1756425829958,7.14,214.82,214.59,7.78]
[1756425830158,7.14,214.8,214.59,7.78]
[1756425830362,7.14,214.78,214.59,7.78]
[1756425830660,7.96,214.83,214.59,7.78]
[1756425830661,7.14,214.76,214.59,7.78]
[1756425831557,7.96,214.83,214.6,19.62]
[1756425831759,5.7656263,214.82,214.59,7.78]
[1756425832063,12.9056263,214.81,214.59,7.78]
[1756425832258,7.14,214.79,214.59,7.78]
[1756425832454,7.14,214.77,214.59,7.78]
[1756425832658,7.14,214.75,214.59,7.78]
[1756425832957,7.14,214.73,214.59,7.78]
[1756425833861,7.14,214.83,214.6,7.83784024]
[1756425834057,7.14,214.81,214.61,7.78]
[1756425834266,7.14,214.83,214.61,15.61784024]
[1756425834454,3.21650504,214.82,214.61,15.61784024]
[1756425834658,7.14,214.8,214.61,15.61784024]
[1756425834858,7.14,214.8,214.62,7.83784024]
[1756425835057,7.14,214.8,214.61,15.61784024]
[1756425835361,7.14,214.8,214.62,7.83784024]
[1756425836062,7.14,214.8,214.61,15.61784024]
[1756425836263,7.14,214.8,214.62,7.83784024]
[1756425837363,7.14,214.8,214.63,7.83784024]
[1756425837562,7.14,214.8,214.64,7.78]
[1756425839561,7.14,214.84,214.64,7.78]
[1756425839762,7.14,214.82,214.64,15.61784024]
[1756425840058,365.52,214.85,214.65,15.61784024]
[1756425840059,7.14,214.84,214.65,15.61784024]
[1756425840859,365.52,214.85,214.65,15.61784024]
[1756425841069,7.14,214.79,214.57,7.83784024]
[1756425841265,7.14,214.77,214.55,7.83784024]
[1756425841569,7.14,214.75,214.55,7.83784024]
[1756425842964,7.14,214.75,214.56,7.78]
[1756425843761,3.36071982,214.74,214.56,7.78]
[1756425843962,7.14,214.73,214.56,7.78]
[1756425844466,7.14,214.73,214.56,15.61784024]
[1756425844671,7.78,214.77,214.56,15.61784024]
[1756425844868,16.26397049,214.76,214.56,7.78]
[1756425845072,7.14,214.74,214.56,7.78]
[1756425846771,7.14,214.74,214.56,15.61784024]
[1756425847268,7.6,214.76,214.56,15.61784024]
[1756425847470,7.6,214.74,214.56,15.61784024]
[1756425847767,7.6,214.76,214.56,7.83784024]
[1756425847971,7.6,214.74,214.57,7.53]